Cogmind - Beta 13 @@@ ROGUE MODE // 2024.05.28 @ 22:16:43 Player: Heliostats Result: Destroyed by G-34 Mercenary with Small Laser Performance ------------- Evolutions (0) 0 Regions Visited (1) 200 Robots Destroyed (26) 130 Value Destroyed (527) 527 Prototype IDs (0) 0 Alien Tech Used (0) 0 Bonus (0) 0 TOTAL SCORE: 857 Bonus ------- None Cogmind --------- Core Integrity 0/250 Matter 240/300 Energy 91/100 System Corruption 0% Temperature Cool (6) Movement Core (50) Location -10/Materials Parts ------- > --- POWER (1) -------- (None) > --- PROPULSION (2) --- (None) > --- UTILITY (2) ------ Signal Interpreter Improved Terrain Scanner > --- WEAPON (2) ------- Light Assault Rifle > --- INVENTORY (5) ---- Light Ion Engine Beam Cannon Light Assault Rifle Light Assault Rifle Grenade Launcher Peak State ------------ > --- POWER ------------ Light Ion Engine > --- PROPULSION ------- Light Treads Light Treads > --- UTILITY ---------- Signal Interpreter Improved Terrain Scanner > --- WEAPON ----------- Light Assault Rifle Light Assault Rifle > --- INVENTORY -------- Light Assault Rifle Grenade Launcher [Rating: 9] Favorites ----------- Power Light Ion Engine Engine Light Ion Engine Propulsion Light Treads Treads Light Treads Utility Improved Terrain Scanner Device Improved Terrain Scanner Processor Signal Interpreter Weapon Light Assault Rifle Energy Gun Small Laser Ballistic Gun Light Assault Rifle Launcher Grenade Launcher Build | -11 -10 ------- Run | Yrd Mat Slots Evolved . | . . Power . | . . Propulsion . | . . Utility . | . . Weapon . | . . Parts Attached 21 | 7 14 Power 4 | 1 3 Engine 4 | 1 3 Core . | . . Reactor . | . . Propulsion 3 | 2 1 Treads 3 | 2 1 Leg . | . . Wheel . | . . Hover . | . . Flight . | . . Utility 2 | 1 1 Device 1 | 1 . Storage . | . . Processor 1 | . 1 Hackware . | . . Protection . | . . Artifact . | . . Weapon 12 | 3 9 Energy Gun 2 | 1 1 Energy Cannon . | . . Ballistic Gun 7 | 2 5 Ballistic Cannon . | . . Launcher 3 | . 3 Special Weapon . | . . Impact Weapon . | . . Slashing Weapon . | . . Piercing Weapon . | . . Special Melee Weapon . | . . Unidentified Prototypes . | . . Parts Lost 6 | . 6 Power 2 | . 2 Propulsion 2 | . 2 Utility . | . . Weapon 2 | . 2 Highest Loss Streak 2 | . 2 To Critical Strikes . | . . Average Slot Usage (%) 93 | . 93 Engine 12 | . 12 Treads 25 | . 25 Device 14 | . 14 Processor 11 | . 11 Energy Gun 1 | . 1 Ballistic Gun 24 | . 24 Launcher 1 | . 1 Naked Turns . | . . Heaviest Build 8 | 8 8 Greatest Support 40 | 40 40 Greatest Overweight (x) . | . . Average Overweight (x) . | . . Largest Inventory Capacity 5 | 5 5 Average Capacity 5 | 5 5 Most Carried 5 | 4 5 Average Carried 3 | 1 3 Final Capacity 5 | 5 5 Final Carried 5 | 1 5 Class Distribution -------------------- 100% | Mutant Dominant Class ---------------- Mutant | -10/Materials Resources | -11 -10 ----------- Run | Yrd Mat Matter Collected 555 | 243 312 Remotely . | . . Salvage Created 569 | 38 531 Parts 45 | 5 40 Haulers Intercepted 1 | . 1 Recyclers Shooed . | . . Parts Field Recycled . | . . Retrieved Matter . | . . Parts Self-Destructed . | . . Prevented . | . . Kills | -11 -10 ------- Run | Yrd Mat Combat Hostiles Destroyed 20 | . 20 Guns 16 | . 16 AOE 4 | . 4 Classes Destroyed 6 | 1 5 Builder 1 | . 1 Tunneler 2 | 2 . Hauler 1 | . 1 Watcher 2 | . 2 Swarmer 9 | . 9 Grunt 11 | . 11 Best Kill Streak 6 | 1 6 Combat Bots Only 6 | . 6 Max Kills in Single Turn 2 | 1 2 Gunslinging . | . . Exploded 1 | . 1 Melee . | . . Uniques/NPCs Destroyed . | . . Combat | -11 -10 -------- Run | Yrd Mat Hostile Shots Fired 119 | . 119 Missed 26 | . 26 Damage Taken 926 | . 926 Core 251 | . 251 Absorbed by Shields . | . . Core Remaining (%) 100 | 100 . Volleys Fired 82 | 4 78 Largest 2 | 2 2 Hottest 70 | 60 70 Shots Fired 159 | 8 151 Gun 150 | 8 142 Cannon . | . . Launcher 9 | . 9 Special . | . . Kinetic 131 | 7 124 Thermal 18 | . 18 Explosive 9 | . 9 Electromagnetic 1 | 1 . Robot Hit Streak 8 | 2 8 Robot Miss Streak 4 | 2 4 Penetration Max . | . . Secondary Targets 2 | . 2 Max Gunslinging Chain 1 | . 1 Shots Hit Robots 98 | 3 95 Core Hits 47 | 2 45 Critical Kills 1 | . 1 Critical Parts Destroyed 1 | . 1 Critical Strikes 2 | . 2 Destroy 2 | . 2 Melee Attacks . | . . Impact . | . . Slashing . | . . Piercing . | . . Sneak Attacks . | . . Combat Hostiles . | . . Follow-up Attacks . | . . Damage Inflicted 1280 | 33 1247 Guns 782 | 33 749 Cannons . | . . Explosions 498 | . 498 Melee . | . . Ramming . | . . Kinetic 658 | 33 625 Thermal 124 | . 124 Explosive 498 | . 498 Electromagnetic . | . . Impact . | . . Slashing . | . . Piercing . | . . Highest Corruption . | . . Average Corruption . | . . Corruption Purged . | . . Corruption Blocked . | . . Overload Shots . | . . Overflow Damage . | . . Projectiles . | . . Explosions . | . . Melee . | . . Knockbacks . | . . Impact . | . . Kinetic . | . . Secondary . | . . Self-Inflicted Damage 2 | . 2 Shots 1 | . 1 Rammed . | . . Targets Rammed . | . . Kicked . | . . Crushed . | . . Highest Temperature 47 | 2 47 Average Temperature 14 | 2 14 Received Heat Transfer 354 | . 354 Siege Activations . | . . Robots Corrupted . | . . Combat Hostiles . | . . Parts Fried . | . . Impact Corruptions . | . . Robots Melted . | . . Combat Hostiles . | . . Parts Melted . | . . Heat Transferred 275 | . 275 Parts Sabotaged . | . . Parts Stolen . | . . Parts Stripped . | . . Power Chain Reactions . | . . Alert | -11 -10 ------- Run | Yrd Mat Peak Influence 368 | 10 368 Initial 6 | . 6 Average 147 | 4 155 Maximum Alert Level 1 | . 1 Low Security (%) 55 | 100 53 Level 1 44 | . 46 Level 2 . | . . Level 3 . | . . Level 4 . | . . Level 5 . | . . High Security . | . . Max Security . | . . Squads Dispatched 5 | . 5 Investigation 3 | . 3 Extermination . | . . Reinforcement 2 | . 2 Assault . | . . Garrison . | . . Intercept . | . . Searches Triggered . | . . Construction Impeded . | . . Haulers Reinforced . | . . Active Scanning Responses . | . . Cargo Convoy Interrupts . | . . Stealth | -11 -10 --------- Run | Yrd Mat Distress Signals . | . . Communications Jammed . | . . Distress Signals . | . . Times Spotted 31 | . 31 Peak Tracking Total 3 | . 3 Tactical Retreats 2 | . 2 Traps | -11 -10 ------- Run | Yrd Mat Traps Triggered 3 | . 3 Indirectly . | . . Trap Hack Attempts . | . . Triggered . | . . Disarmed . | . . Reprogrammed . | . . Reused . | . . Traps Extracted . | . . Installed . | . . Triggered . | . . Machines | -11 -10 ---------- Run | Yrd Mat Machines Disabled 1 | . 1 Max in Single Turn 1 | . 1 Machines Repaired . | . . Machines Dismantled . | . . Machines Sabotaged . | . . Overloaded Fab Kills . | . . Hacking | -11 -10 --------- Run | Yrd Mat Machines Accessed 7 | . 7 Terminals 5 | . 5 Fabricators . | . . Repair Stations . | . . Recycling Units 2 | . 2 Scanalyzers . | . . Garrison Access . | . . Total Hacks 19 | . 19 Successful 10 | . 10 Failed 9 | . 9 Catastrophic 1 | . 1 Database Lockouts . | . . Manual . | . . Terminals 13 | . 13 Fabricators . | . . Repair Stations . | . . Recycling Units 6 | . 6 Scanalyzers . | . . Garrison Access . | . . Terminal Hacks 6 | . 6 Record 1 | . 1 Alert Level 1 | . 1 Locate Traps 1 | . 1 Dispatch Records 1 | . 1 Zone Layout 2 | . 2 Fabricator Hacks . | . . Repair Station Hacks . | . . Recycling Unit Hacks 4 | . 4 Report Inventory 2 | . 2 Retrieve Components 2 | . 2 Scanalyzer . | . . Garrison Access Hacks . | . . Unauthorized Hacks . | . . Terminals . | . . Fabricators . | . . Repair Stations . | . . Recycling Units . | . . Scanalyzers . | . . Garrison Access . | . . Data Cores Recovered . | . . Used . | . . Hacking Detections 2 | . 2 Full Trace Events 1 | . 1 Feedback Events . | . . Feedback Blocked . | . . Robot Schematics Acquired . | . . Robots Built . | . . Authchips . | . . Time . | . . Total Robot Build Rating . | . . Part Schematics Acquired . | . . Parts Built . | . . Authchips . | . . Time . | . . Total Part Build Rating . | . . Parts Repaired . | . . Time . | . . Parts Recycled . | . . Recycled Matter . | . . Retrieved Matter . | . . Retrieved Components 18 | . 18 Parts Scanalyzed . | . . Part Schematics Acquired . | . . Parts Damaged . | . . Bothacking | -11 -10 ------------ Run | Yrd Mat Used RIF Installer . | . . Robots Hacked . | . . Non-combat . | . . Combat . | . . Robot Hacks Applied . | . . Relay Couplers Released . | . . Fabnet Peak Effective % . | . . Robots Rewired . | . . Allies Hacked . | . . Hacks Repelled . | . . Allies | -11 -10 -------- Run | Yrd Mat Total Allies . | . . Largest Group . | . . Highest-Rated Group . | . . Highest-Rated Ally . | . . Total Orders . | . . Ally Attacks . | . . Total Damage . | . . Kills . | . . Allies Corrupted . | . . Allies Melted . | . . Intel | -11 -10 ------- Run | Yrd Mat Robot Analysis Total . | . . Derelict Logs Recovered . | . . Drone Launches . | . . Drone Recoveries . | . . Exploration | -11 -10 ------------- Run | Yrd Mat Turns Passed 1621 | 85 1536 Spaces Moved 803 | 45 758 Core 13 | 13 . Treads 790 | 32 758 Legs . | . . Wheels . | . . Hover . | . . Flight . | . . Fastest Speed 50 | 50 160 Average Speed 158 | 128 160 Slowest Speed 160 | 160 160 Overloaded Moves . | . . Propulsion Burnouts . | . . Robots Hopped . | . . Cave-ins Triggered . | . . Exploration Rate (%) 41 | 5 77 Regions Visited 1 Branch Regions . Pre-discovered Areas . | . . Known Exits Taken . | . . Unknown Exits Taken 1 | 1 . Scrap Searched . | . . Spaces Dug 4 | . 4 Terrain Destroyed 46 | . 46 Melee . | . . Projectile . | . . AOE 46 | . 46 Terrain Rammed . | . . Walls Destroyed . | . . Machines Disabled . | . . Actions | -11 -10 --------- Run | Yrd Mat Total 1015 | 64 951 Wait 89 | . 89 Move 802 | 44 758 Hop . | . . Pick Up 17 | 8 9 Fast Attach 4 | . 4 Attach 10 | 6 4 Detach . | . . Swap 7 | 1 6 Drop 4 | 1 3 Fire 82 | 4 78 Melee . | . . Ram . | . . Kick . | . . Crush . | . . Escape Stasis . | . . Rewire . | . . Trap . | . . Miscellaneous . | . . Route ------- -11/Scrapyard -10/Materials (discovered 4 exits: *Mat x3 / *Min) History --------- Turn | Location | Event 5 | -11/Scrapyard | Discovered new exit (range 15) 86 | -11/Scrapyard | Entered Materials 317 | -10/Materials | Build established: Mutant 656 | -10/Materials | Discovered new exit (range 6) 698 | -10/Materials | Discovered new exit (range 10) 737 | -10/Materials | Identified exit to Materials 868 | -10/Materials | Identified exit to Mines 919 | -10/Materials | Discovered exit to Materials (range 14) 1407 | -10/Materials | Core integrity fell below 50% 1455 | -10/Materials | Discovered exit to Materials (range 12) 1608 | -10/Materials | Core integrity fell below 20% 1622 | -10/Materials | Destroyed by G-34 Mercenary with Small Laser Last Messages --------------- 01554_ U-05 Engineer builds a Wall. 01558_ U-05 Engineer lays Concrete. 01561_ U-05 Engineer builds a Wall. 01565_ U-05 Engineer lays Concrete. 01569_ Triggered Alarm Trap. 01569_ An alarm sounds. 01569_ ALERT: Alarm triggered, dispatching investigation squad. 01582_ Connecting with Terminal... 01582_ ALERT: Suspicious activity at Terminal M006. Dispatching Investigation squad. 01599_ Lgt. Treads destroyed. 01603_ G-34 Mercenary destroyed. 01603_ Switching to secondary target: G-34 Mercenary. 01609_ G-34 Mercenary destroyed. 01618_ Sml. Laser destroyed. 01620_ G-34 Mercenary suffers critical hit (Destroy). 01620_ Destroyed Ion Engine. Map ----- +----------------------------------------------------+ | ??????#?????????#?## #???????## | | ???#?????########### #????????# | | ?????????# | # ########## | | ????#????# %= # ##""!"|""# | | ???#?#???# """ """ # ###### ## "!"|" # | | ?????????# """ """!# #???## ## # | | ???#?##??# """ """%# ##???# | | ?#??#???## """ """ + #????# > | | ????#???## """ """ # #?#??# | | ?????????# # ########+## # | | ???##???######## # ## ########## | | ??????#?# ## ###????#?? | | ??#??#??# < ! ## ##??#??#?? | | ????##??# ## """ #??#????## | | ????????####+ # #### """ ########## | | ?????#?#?#[ # """ # | | ?????????# !*= # # | | #????????# ! # ! # """ # """ | | #????????# # # """ # """"" | | ???#???#?# "" # """ """ # """ !# """"" | | ????? ???# T" # """ """ # # """"" | | ?? ??????# "" # """ """ #####+### """ | | ?????????# # #?#?#%#?# | | ?????????#+###############??#=#######+#### | | ????????## # g #####[ ##? | | ????????+ +!%g @ """ + ### | | ?????? # # ""T"" """ # ## | | ???? ?# # """"" """ # ## | | ?? ??# # # = # | | # ????# #######+###### < [ # | | # ?????# ????? ? # | | #???????# ? ?? ######### # # # | | ????????# ##????##+########??????# # # | | ????????# ??????????????? ??#????######### | | ????????# ??#?????????????????#?????????#? | | #???????# ?????????????????????#?????????? | | ????????# ??????????????????#????????#??#? | | ?????????+????????????????????#???#?##???? | | ??????????????????????????????#??#???????? | | ????????????? ??#?"?????? ???????????????? | | ?????????????????????????????????????????? | | ?????????????????????????????????????????? | | ????????????????????????????????????#????? | | ?????????????????????????????????????????? | | | | | | | | | | | | | +----------------------------------------------------+ Best States ------------- Heat Dissipation 25 Energy Generation 10 Energy Capacity 125 Matter Stores 300 Matter Capacity 300 Sight Range 16 Terrain Scan Range 16 Terrain Scan Density 10 Evasion (%) 50 Recoil Reduction 2 Item Schematics ----------------- None Robot Schematics ------------------ None Fabricated ------------ Nothing Alien Tech Used ----------------- None Achievements -------------- None Challenges ------------ None Game ------ Seed ModifiedFlightNullifier Manual? 0 Play Time 00:12:29 Cumulative 14.1 hours Start 2024.05.28 @ 22:01:25 End 2024.05.28 @ 22:16:43 Sessions 1 Manual Loads 0 Difficulty Rogue Special Mode None Game No. 21 Rogue 9 Adventurer 12 Explorer 0 Win Type - Total 0 Types 0/0/0/0/0/0/0/0/0 Lore% 17 Gallery% 19 Achievement% 15 Wizard Run 0 Options --------- Layout 1 ASCII 0 Keyboard 0 Movement Mouse Keybinds 0 Fullscreen 2 Font 24/Smallcaps Map View 50x35 Zoom Use 0% Tactical HUD 1 Map Filters NONE Filters NONE Steam 1 RUN: 13cf1ec3-a00e-47c1-8059-4957e10269ba